fUSD/lending_fUSD_20240817
["ID","MTS","AMOUNT","RATE_DAILY","PERIOD"]
[335129117,1723875058491,-5382.06,0.00010856,2]
[335129118,1723875058534,-6833.97,0.00010856,2]
[335129119,1723875058578,-6527.2,0.00010856,2]
[335129120,1723875058621,-332.68041345,0.00010856,2]
[335129121,1723875058663,-6833.97,0.00010856,2]
[335129122,1723875058707,-5382.06,0.00010856,2]
[335129123,1723875058753,-6527.2,0.00010856,2]
[335129124,1723875058797,-5382.06,0.00010856,2]
[335129125,1723875058839,-6527.2,0.00010856,2]
[335129126,1723875058884,-6833.97,0.00010856,2]
[335129127,1723875058930,-5382.06,0.00010856,2]
[335129128,1723875058972,-6527.2,0.00010856,2]
[335129130,1723875059015,-6833.97,0.00010856,2]
[335129131,1723875059057,-5382.06,0.00010856,2]
[335129132,1723875059098,-6527.2,0.00010856,2]
[335129133,1723875059139,-6833.97,0.00010856,2]
[335129134,1723875059179,-500.0,0.00010856,2]
[335129135,1723875059220,-5382.06,0.00010856,2]
[335129136,1723875059261,-6833.97,0.00010856,2]
[335129137,1723875059302,-6527.2,0.00010856,2]
[335129138,1723875059343,-5382.06,0.00010856,2]
[335129139,1723875059386,-6527.2,0.00010856,2]
[335129140,1723875059435,-6833.97,0.00010856,2]
[335129141,1723875059477,-5382.06,0.00010856,2]
[335129142,1723875059519,-6833.97,0.00010856,2]
[335129143,1723875059559,-5382.06,0.00010856,2]
[335129144,1723875059601,-6527.2,0.00010856,2]
[335129145,1723875059642,-6834.11192924,0.00010856,2]
[335129146,1723875059682,-6527.2,0.00010856,2]
[335129147,1723875059722,-5382.06,0.00010856,2]
[335129148,1723875059764,-6527.2,0.00010856,2]
[335129149,1723875059807,-5382.06,0.00010856,2]
[335129150,1723875059849,-6527.2,0.00010856,2]
[335129151,1723875059891,-5382.22,0.00010856,2]
[335129152,1723875059931,-6527.2,0.00010856,2]
[335129153,1723875059972,-6527.2,0.00010856,2]
[335129154,1723875060011,-6527.2,0.00010856,2]
[335129155,1723875060052,-2480.33,0.00010856,2]
[335129156,1723875060093,-354.54668661,0.00010856,2]
[335129157,1723875060134,-6527.2,0.00010856,2]
[335129158,1723875060180,-2480.33,0.00010856,2]
[335129159,1723875060223,-6527.2,0.00010856,2]
[335129160,1723875060402,-2480.33,0.00010856,2]
[335129161,1723875060446,-6527.40579058,0.00010856,2]
[335129162,1723875060487,-2480.33,0.00010856,2]
[335129163,1723875060529,-2480.33,0.00010856,2]
[335129164,1723875060572,-2480.33,0.00010856,2]
[335129165,1723875060619,-2480.33,0.00010856,2]
[335129166,1723875060667,-500.0,0.00010856,2]
[335129167,1723875060716,-2480.33,0.00010856,2]
[335129168,1723875060760,-2480.33,0.00010856,2]
[335129169,1723875060809,-500.0,0.00010856,2]
[335129170,1723875060856,-2480.33,0.00010856,2]
[335129171,1723875060897,-2480.33,0.00010856,2]
[335129172,1723875060941,-3085.75,0.00010856,2]
[335129173,1723875060981,-2480.33,0.00010856,2]
[335129174,1723875061023,-2480.36832984,0.00010856,2]
[335129175,1723875061064,-500.0,0.00010856,2]
[335129176,1723875061106,-79532.5,0.00010856,2]
[335129177,1723875061150,-79532.5,0.00010856,2]
[335129178,1723875061195,-79532.5,0.00010856,2]
[335129179,1723875061239,-79532.5,0.00010856,2]
[335129180,1723875061281,-79532.5,0.00010856,2]
[335129181,1723875061331,-79532.5,0.00010856,2]
[335129182,1723875061373,-79532.5,0.00010856,2]
[335129183,1723875061416,-79532.5,0.00010856,2]
[335129184,1723875061460,-79532.5,0.00010856,2]
[335129185,1723875061502,-79532.5,0.00010856,2]
[335129186,1723875061544,-79532.5,0.00010856,2]
[335129187,1723875061586,-79532.5,0.00010856,2]
[335129188,1723875061628,-79532.55197991,0.00010856,2]
[335129189,1723875061669,-525.1,0.00010856,2]
[335129190,1723875061713,-525.1,0.00010856,2]
[335129191,1723875061756,-525.1,0.00010856,2]
[335129192,1723875061801,-5044.63,0.00010856,2]
[335129193,1723875061843,-525.1,0.00010856,2]
[335129194,1723875061889,-525.1,0.00010856,2]
[335129195,1723875061932,-525.1,0.00010856,2]
[335129196,1723875061975,-525.1,0.00010856,2]
[335129197,1723875062020,-31331.31,0.00010856,2]
[335129198,1723875062062,-525.1,0.00010856,2]
[335129199,1723875062102,-31331.31,0.00010856,2]
[335129200,1723875062144,-525.1,0.00010856,2]
[335129201,1723875062185,-31331.31,0.00010856,2]
[335129202,1723875062228,-31331.31,0.00010856,2]
[335129203,1723875062282,-31331.31,0.00010856,2]
[335129204,1723875062347,-434.93759137,0.00010856,2]
[335129205,1723875062411,-31331.31,0.00010856,2]
[335129206,1723875062470,-31331.31,0.00010856,2]
[335129207,1723875062530,-31331.31,0.00010856,2]
[335129208,1723875062591,-31331.31,0.00010856,2]
[335129209,1723875062652,-31331.31,0.00010856,2]
[335129210,1723875062706,-31331.31,0.00010856,2]
[335129211,1723875062762,-500.0,0.00010856,2]
[335129212,1723875062818,-12949.59,0.00010856,2]
[335129213,1723875062874,-12949.59,0.00010856,2]
[335129214,1723875062932,-31331.31,0.00010856,2]
[335129215,1723875062989,-12949.59,0.00010856,2]
[335129216,1723875063047,-31331.31,0.00010856,2]
[335129217,1723875063107,-12949.59,0.00010856,2]
[335129218,1723875063164,-31331.31,0.00010856,2]
[335129219,1723875063224,-31331.31,0.00010856,2]
[335129220,1723875063304,-27898.95,0.00010856,2]
[335129221,1723875063375,-31331.31,0.00010856,2]
[335129222,1723875063440,-27898.95,0.00010856,2]
[335129223,1723875063505,-31331.31,0.00010856,2]
[335129224,1723875063569,-12949.59,0.00010856,2]
[335129225,1723875063635,-27898.95,0.00010856,2]
[335129226,1723875063695,-31331.31,0.00010856,2]
[335129227,1723875063758,-12949.59,0.00010856,2]
[335129228,1723875063818,-27898.95,0.00010856,2]
[335129229,1723875063876,-12949.59,0.00010856,2]
[335129230,1723875063937,-27898.95,0.00010856,2]
[335129231,1723875063993,-12949.59,0.00010856,2]
[335129232,1723875064053,-31331.31,0.00010856,2]
[335129233,1723875064114,-27898.95,0.00010856,2]
[335129234,1723875064176,-12949.59,0.00010856,2]
[335129235,1723875064233,-27898.95,0.00010856,2]
[335129236,1723875064297,-31331.31,0.00010856,2]
[335129237,1723875064356,-12949.59,0.00010856,2]
[335129238,1723875064417,-31331.31,0.00010856,2]
[335129239,1723875064476,-12949.59,0.00010856,2]
[335129240,1723875064530,-5122.14,0.00010856,2]
[335129241,1723875064583,-31331.40419123,0.00010856,2]
[335129242,1723875064638,-12949.59,0.00010856,2]
[335129243,1723875064694,-5122.14,0.00010856,2]
[335129244,1723875064748,-12949.74952189,0.00010856,2]
[335129245,1723875064804,-5122.14,0.00010856,2]
[335129246,1723875064858,-6299.39,0.00010856,2]
[335129247,1723875065123,-5122.14,0.00010856,2]
[335129248,1723875065166,-5122.14,0.00010856,2]
[335129249,1723875065208,-5122.14,0.00010856,2]
[335129250,1723875065250,-500.0,0.00010856,2]
[335129251,1723875065295,-5122.14,0.00010856,2]
[335129252,1723875065335,-5122.14,0.00010856,2]
[335129253,1723875065379,-5122.14,0.00010856,2]
[335129254,1723875065423,-5122.14,0.00010856,2]
[335129255,1723875065465,-27898.95,0.00010856,2]
[335129256,1723875065508,-5122.14,0.00010856,2]
[335129257,1723875065552,-27898.95,0.00010856,2]
[335129258,1723875065594,-5122.14,0.00010856,2]
[335129259,1723875065639,-27898.95,0.00010856,2]
[335129260,1723875065686,-500.0,0.00010856,2]
[335129261,1723875065727,-5122.19066985,0.00010856,2]
[335129262,1723875065768,-500.0,0.00010856,2]
[335129263,1723875065809,-27898.95,0.00010856,2]
[335129264,1723875065850,-500.0,0.00010856,2]
[335129265,1723875065895,-27898.95,0.00010856,2]
[335129266,1723875065938,-500.0,0.00010856,2]
[335129267,1723875065979,-27898.95,0.00010856,2]
[335129268,1723875066021,-4550.38,0.00010856,2]
[335129269,1723875066061,-500.0,0.00010856,2]
[335129270,1723875066103,-27898.95,0.00010856,2]
[335129271,1723875066145,-4550.38,0.00010856,2]
[335129272,1723875066187,-368.42324619,0.00010856,2]
[335129273,1723875066229,-27898.95,0.00010856,2]
[335129274,1723875066270,-4550.38,0.00010856,2]
[335129275,1723875066311,-27898.95,0.00010856,2]
[335129276,1723875066352,-4550.38,0.00010856,2]
[335129277,1723875066394,-27898.95,0.00010856,2]
[335129278,1723875066434,-4550.38,0.00010856,2]
[335129279,1723875066477,-379.11059853,0.00010856,2]
[335129280,1723875066517,-27898.95,0.00010856,2]
[335129281,1723875066559,-4550.38,0.00010856,2]
[335129282,1723875066600,-27898.95,0.00010856,2]
[335129283,1723875066642,-24343.45,0.00010856,2]
[335129284,1723875066685,-4550.38,0.00010856,2]
[335129285,1723875066730,-27898.95,0.00010856,2]
[335129286,1723875066772,-24343.45,0.00010856,2]
[335129287,1723875066814,-4550.38,0.00010856,2]
[335129288,1723875066857,-27898.95,0.00010856,2]
[335129289,1723875066898,-24343.45,0.00010856,2]
[335129290,1723875066941,-4550.38,0.00010856,2]
[335129291,1723875066984,-27899.1556082,0.00010856,2]
[335129292,1723875067028,-24343.45,0.00010856,2]
[335129293,1723875067071,-4550.38,0.00010856,2]
[335129294,1723875067113,-24343.45,0.00010856,2]
[335129295,1723875067154,-4550.38,0.00010856,2]
[335129296,1723875067195,-24343.45,0.00010856,2]
[335129297,1723875067237,-4550.38,0.00010856,2]
[335129298,1723875067285,-24343.45,0.00010856,2]
[335129299,1723875067330,-4550.38,0.00010856,2]
[335129300,1723875067376,-24343.45,0.00010856,2]
[335129301,1723875067417,-4550.38,0.00010856,2]
[335129302,1723875067460,-24343.45,0.00010856,2]
[335129303,1723875067502,-4550.38,0.00010856,2]
[335129304,1723875067546,-4550.38,0.00010856,2]
[335129305,1723875067589,-24343.45,0.00010856,2]
[335129306,1723875067631,-4550.38,0.00010856,2]
[335129307,1723875067673,-24343.45,0.00010856,2]
[335129308,1723875067721,-9423.15,0.00010856,2]
[335129309,1723875067765,-500.0,0.00010856,2]
[335129310,1723875067810,-500.0,0.00010856,2]
[335129311,1723875067853,-4550.38,0.00010856,2]
[335129312,1723875067895,-24343.45,0.00010856,2]
[335129313,1723875067939,-4550.38,0.00010856,2]
[335129314,1723875067985,-500.0,0.00010856,2]
[335129315,1723875068027,-4550.38,0.00010856,2]
[335129316,1723875068070,-500.0,0.00010856,2]
[335129317,1723875068113,-24343.62164806,0.00010856,2]
[335129318,1723875068156,-500.0,0.00010856,2]
[335129319,1723875068198,-4550.38,0.00010856,2]
[335129320,1723875068241,-500.0,0.00010856,2]
[335129321,1723875068290,-4550.57555754,0.00010856,2]
[335129322,1723875068344,-500.0,0.00010856,2]
[335129323,1723875068398,-500.0,0.00010856,2]
[335129324,1723875068454,-500.0,0.00010856,2]
[335129325,1723875068499,-500.0,0.00010856,2]
[335129326,1723875068542,-6815.89,0.00010856,2]
[335129327,1723875068583,-500.0,0.00010856,2]
[335129328,1723875068625,-6815.89,0.00010856,2]
[335129329,1723875068667,-160.26585147,0.00010856,2]
[335129330,1723875068708,-6815.89,0.00010856,2]
[335129331,1723875068754,-7170.4,0.00010856,2]
[335129332,1723875068795,-6815.89,0.00010856,2]
[335129333,1723875068841,-7170.4,0.00010856,2]
[335129334,1723875068882,-7170.4,0.00010856,2]
[335129335,1723875068923,-6815.89,0.00010856,2]
[335129336,1723875068966,-903.29,0.00010856,2]
[335129337,1723875069007,-7170.4,0.00010856,2]
[335129338,1723875069047,-6815.89,0.00010856,2]
[335129339,1723875069088,-903.29,0.00010856,2]
[335129340,1723875069127,-7170.4,0.00010856,2]
[335129341,1723875069166,-6815.89,0.00010856,2]
[335129342,1723875069207,-903.29,0.00010856,2]
[335129343,1723875069245,-6815.89,0.00010856,2]
[335129344,1723875069428,-7170.4,0.00010856,2]
[335129345,1723875069468,-903.29,0.00010856,2]
[335129346,1723875069507,-6815.89,0.00010856,2]
[335129347,1723875069547,-903.29,0.00010856,2]
[335129348,1723875069586,-500.0,0.00010856,2]
[335129349,1723875069625,-7170.4,0.00010856,2]
[335129350,1723875069667,-6815.89,0.00010856,2]
[335129351,1723875069709,-903.29,0.00010856,2]
[335129352,1723875069753,-7170.4,0.00010856,2]
[335129353,1723875069796,-500.0,0.00010856,2]
[335129354,1723875069842,-3458.95,0.00010856,2]
[335129355,1723875069885,-5558.65010814,0.00010856,2]
[335129356,1723875078785,347.86651899,9.962e-05,2]
[335129357,1723875079373,264.29977035,9.962e-05,2]
[335129358,1723875090068,-300.0,0.00010656,2]
[335129359,1723875090485,-1715.55469087,0.00010656,2]
[335129360,1723875090496,-870.0340065,0.00010656,2]
[335129361,1723875090507,-4614.41130263,0.00010656,2]
[335129362,1723875090517,-300.0,0.00010754,2]
[335129363,1723875090526,-500.0,0.00010755,2]
[335129364,1723875090535,-500.0,0.00010755,2]
[335129365,1723875090544,-1116.37,0.00010755,2]
[335129366,1723875090554,-500.0,0.00010755,2]
[335129367,1723875090563,-3216.36,0.00010755,2]
[335129368,1723875090572,-500.0,0.00010755,2]
[335129369,1723875090581,-11326.84,0.00010755,2]
[335129370,1723875090590,-500.0,0.00010756,2]
[335129371,1723875090599,-500.0,0.00010756,2]
[335129372,1723875090608,-197.21827254,0.00010756,2]
[335129373,1723875090617,-1116.37,0.00010756,2]
[335129374,1723875090627,-1116.37,0.00010756,2]
[335129375,1723875090635,-1116.37,0.00010756,2]
[335129376,1723875090645,-1116.37,0.00010756,2]
[335129377,1723875090654,-500.0,0.00010756,2]
[335129378,1723875090663,-500.0,0.00010756,2]
[335129379,1723875090672,-151.0,0.00010756,2]
[335129380,1723875090681,-151.0,0.00010756,2]
[335129381,1723875090690,-3216.36,0.00010756,2]
[335129382,1723875090699,-3216.36,0.00010756,2]
[335129383,1723875090708,-3216.36,0.00010756,2]
[335129384,1723875090717,-3216.36,0.00010756,2]
[335129385,1723875090727,-500.0,0.00010756,2]
[335129386,1723875090738,-500.0,0.00010756,2]
[335129387,1723875090748,-5902.04,0.00010756,2]
[335129388,1723875090759,-5902.04,0.00010756,2]
[335129389,1723875090768,-5902.04,0.00010756,2]
[335129390,1723875090777,-23183.57,0.00010756,2]
[335129391,1723875090786,-23183.57,0.00010756,2]
[335129392,1723875090796,-23183.57,0.00010756,2]
[335129393,1723875090805,-151.0,0.00010756,2]
[335129394,1723875090814,-619.63,0.00010756,2]
[335129395,1723875090824,-619.63,0.00010756,2]
[335129396,1723875090834,-619.63,0.00010756,2]
[335129397,1723875090843,-11326.84,0.00010756,2]
[335129398,1723875090852,-11326.84,0.00010756,2]
[335129399,1723875090862,-11326.84,0.00010756,2]
[335129400,1723875090871,-11326.84,0.00010756,2]
[335129401,1723875090880,-3978.12,0.00010757,2]
[335129402,1723875090890,-3670.35,0.00010757,2]
[335129403,1723875090899,-2082.006965,0.00010757,2]
[335129404,1723875090908,-1116.37,0.00010757,2]
[335129405,1723875090917,-2082.006965,0.00010757,2]
[335129406,1723875090926,-2082.006965,0.00010757,2]
[335129407,1723875090935,-2082.006965,0.00010757,2]
[335129408,1723875090945,-2082.006965,0.00010757,2]
[335129409,1723875090955,-2082.006965,0.00010757,2]
[335129410,1723875091143,-2082.006965,0.00010757,2]
[335129411,1723875091154,-2082.006965,0.00010757,2]
[335129412,1723875091163,-2082.006965,0.00010757,2]
[335129413,1723875091172,-2082.006965,0.00010757,2]
[335129414,1723875091181,-500.0,0.00010757,2]
[335129415,1723875091191,-500.0,0.00010757,2]
[335129416,1723875091200,-151.0,0.00010757,2]
[335129417,1723875091209,-151.0,0.00010757,2]
[335129418,1723875091218,-151.0,0.00010757,2]
[335129419,1723875091228,-151.0,0.00010757,2]
[335129420,1723875091237,-151.0,0.00010757,2]
[335129421,1723875091247,-177.3746,0.00010757,2]
[335129422,1723875091255,-203.074497,0.00010757,2]
[335129423,1723875091265,-203.074497,0.00010757,2]
[335129424,1723875091274,-203.074497,0.00010757,2]
[335129425,1723875091283,-203.074497,0.00010757,2]
[335129426,1723875091294,-203.074497,0.00010757,2]
[335129427,1723875091304,-500.0,0.00010757,2]
[335129428,1723875091313,-3216.36,0.00010757,2]
[335129429,1723875091322,-203.074497,0.00010757,2]
[335129430,1723875091331,-203.074497,0.00010757,2]
[335129431,1723875091342,-203.074497,0.00010757,2]
[335129432,1723875091351,-203.074497,0.00010757,2]
[335129433,1723875091360,-203.074497,0.00010757,2]
[335129434,1723875091370,-500.0,0.00010757,2]
[335129435,1723875091380,-600.19,0.00010757,2]
[335129436,1723875091389,-500.0,0.00010757,2]
[335129437,1723875091398,-415.37569391,0.00010757,2]
[335129438,1723875091407,-5902.04,0.00010757,2]
[335129439,1723875091416,-6110.98,0.00010757,2]
[335129440,1723875091425,-23183.57,0.00010757,2]
[335129441,1723875091434,-497.8049838,0.00010757,2]
[335129442,1723875091444,-218.318286,0.00010757,2]
[335129443,1723875091459,-500.0,0.00010757,2]
[335129444,1723875091469,-619.63,0.00010757,2]
[335129445,1723875091478,-1416.33,0.00010757,2]
[335129446,1723875091487,-11326.84,0.00010757,2]
[335129447,1723875091497,-2082.006965,0.00010758,2]
[335129448,1723875091507,-2082.006965,0.00010758,2]
[335129449,1723875091517,-203.074497,0.00010758,2]
[335129450,1723875091526,-203.074497,0.00010758,2]
[335129451,1723875091536,-687.35701908,0.00010852,2]
[335129452,1723875091546,-687.35701908,0.00010852,2]
[335129453,1723875091556,-1116.37,0.00010852,2]
[335129454,1723875091565,-3216.36,0.00010852,2]
[335129455,1723875091575,-11326.84,0.00010852,2]
[335129456,1723875091584,-2609.5,0.00010853,2]
[335129457,1723875091594,-2609.5,0.00010853,2]
[335129458,1723875091603,-2609.5,0.00010853,2]
[335129459,1723875091612,-2609.5,0.00010853,2]
[335129460,1723875091621,-1116.37,0.00010853,2]
[335129461,1723875091630,-1116.37,0.00010853,2]
[335129462,1723875091640,-1116.37,0.00010853,2]
[335129463,1723875091650,-1116.37,0.00010853,2]
[335129464,1723875091659,-1116.37,0.00010853,2]
[335129465,1723875091669,-3216.36,0.00010853,2]
[335129466,1723875091679,-3216.36,0.00010853,2]
[335129467,1723875091689,-3216.36,0.00010853,2]
[335129468,1723875091699,-3216.36,0.00010853,2]
[335129469,1723875091708,-3216.36,0.00010853,2]
[335129470,1723875091718,-5902.04,0.00010853,2]
[335129471,1723875091727,-23183.57,0.00010853,2]
[335129472,1723875091737,-619.63,0.00010853,2]
[335129473,1723875091747,-11326.84,0.00010853,2]
[335129474,1723875091757,-11326.84,0.00010853,2]
[335129475,1723875091767,-11326.84,0.00010853,2]
[335129476,1723875091776,-11326.84,0.00010853,2]
[335129477,1723875091786,-11326.84,0.00010853,2]
[335129478,1723875091796,-3762.62,0.00010854,2]
[335129479,1723875091806,-3762.62,0.00010854,2]
[335129480,1723875091816,-3762.62,0.00010854,2]
[335129481,1723875091825,-3762.62,0.00010854,2]
[335129482,1723875091836,-2609.5,0.00010854,2]
[335129483,1723875091845,-3762.62,0.00010854,2]
[335129484,1723875091855,-2609.5,0.00010854,2]
[335129485,1723875091864,-3762.62,0.00010854,2]
[335129486,1723875091874,-2609.5,0.00010854,2]
[335129487,1723875091883,-2609.5,0.00010854,2]
[335129488,1723875091892,-3762.62,0.00010854,2]
[335129489,1723875091902,-2609.5,0.00010854,2]
[335129490,1723875091912,-3762.62,0.00010854,2]
[335129491,1723875091922,-2609.5,0.00010854,2]
[335129492,1723875091932,-3762.62,0.00010854,2]
[335129493,1723875091941,-2609.5,0.00010854,2]
[335129494,1723875091953,-3762.62,0.00010854,2]
[335129495,1723875091963,-2609.5,0.00010854,2]
[335129496,1723875091972,-3762.62,0.00010854,2]
[335129497,1723875091982,-2609.5,0.00010854,2]
[335129498,1723875091991,-2609.5,0.00010854,2]
[335129499,1723875092001,-2609.5,0.00010854,2]
[335129500,1723875092010,-2609.63692308,0.00010854,2]
[335129501,1723875092019,-1116.37,0.00010854,2]
[335129502,1723875092028,-1116.37,0.00010854,2]
[335129503,1723875092037,-2082.006965,0.00010854,2]
[335129504,1723875092046,-1116.37,0.00010854,2]
[335129505,1723875092056,-1116.37,0.00010854,2]
[335129506,1723875092064,-2082.006965,0.00010854,2]
[335129507,1723875092074,-1116.37,0.00010854,2]
[335129508,1723875092083,-1116.37,0.00010854,2]
[335129509,1723875092092,-2082.006965,0.00010854,2]
[335129510,1723875092102,-1116.37,0.00010854,2]
[335129511,1723875092111,-2082.006965,0.00010854,2]
[335129512,1723875092120,-1116.37,0.00010854,2]
[335129513,1723875092130,-1116.37,0.00010854,2]
[335129514,1723875092139,-1116.37,0.00010854,2]
[335129515,1723875092148,-1116.37,0.00010854,2]
[335129516,1723875092158,-1116.49961995,0.00010854,2]
[335129517,1723875092167,-2082.006965,0.00010854,2]
[335129518,1723875092176,-2082.006965,0.00010854,2]
[335129519,1723875092185,-2082.006965,0.00010854,2]
[335129520,1723875092194,-2082.00697,0.00010854,2]
[335129521,1723875092204,-500.0,0.00010854,2]
[335129522,1723875092213,-203.074497,0.00010854,2]
[335129523,1723875092222,-203.074497,0.00010854,2]
[335129524,1723875092231,-203.074497,0.00010854,2]
[335129525,1723875092240,-203.074497,0.00010854,2]
[335129526,1723875092250,-203.074497,0.00010854,2]
[335129527,1723875092260,-203.074497,0.00010854,2]
[335129528,1723875092269,-3216.36,0.00010854,2]
[335129529,1723875092279,-3216.36,0.00010854,2]
[335129530,1723875092291,-621.45283768,0.00010854,2]
[335129531,1723875092563,-810.43183509,0.00010854,2]
[335129532,1723875092627,250.0,9.864e-05,2]
[335129533,1723875092758,-730.07124766,0.00010854,2]
[335129534,1723875092771,-1054.40407957,0.00010854,2]
[335129535,1723875092781,-203.074497,0.00010854,2]
[335129536,1723875092790,-3216.36,0.00010854,2]
[335129537,1723875092800,-2956.02094429,0.00010854,2]
[335129538,1723875092811,-260.33905571,0.00010854,2]
[335129539,1723875092820,-203.074497,0.00010854,2]
[335129540,1723875092830,-267.76279885,0.00010854,2]
[335129541,1723875092841,-1247.19195163,0.00010854,2]
[335129542,1723875092851,-547.52749393,0.00010854,2]
[335129543,1723875092862,-716.93538468,0.00010854,2]
[335129544,1723875092873,-436.94237091,0.00010854,2]
[335129545,1723875092882,-3216.36,0.00010854,2]
[335129546,1723875092892,-3216.36,0.00010854,2]
[335129547,1723875092902,-392.8390298,0.00010854,2]
[335129548,1723875092943,-2823.5209702,0.00010854,2]
[335129549,1723875092952,-1060.92047572,0.00010854,2]
[335129550,1723875092963,-395.48039178,0.00010854,2]
[335129551,1723875092974,-574.03358918,0.00010854,2]
[335129552,1723875093071,-1185.92554332,0.00010854,2]
[335129553,1723875093081,-3216.36,0.00010854,2]
[335129554,1723875093090,-2147.2808112,0.00010854,2]
[335129555,1723875093102,-1069.26012758,0.00010854,2]
[335129556,1723875093111,-420.17314842,0.00010854,2]
[335129557,1723875094011,-79.82685158,0.00010854,2]
[335129558,1723875094021,-267.89894533,0.00010854,2]
[335129559,1723875098719,500.0,9.881e-05,2]
[335129560,1723875154967,462.35,9.846e-05,2]
[335129561,1723875174537,400.0,9.846e-05,2]
[335129562,1723875253411,196.35,9.847e-05,2]
[335129563,1723875344798,155.86,8.219e-05,2]
[335129564,1723875472306,264.51117711,9.962e-05,2]
[335129565,1723875562455,558.42,9.807e-05,2]
[335129566,1723875630474,200.0,9.8e-05,2]
[335129567,1723875638824,630.12,9.79e-05,2]
[335129568,1723875734232,8578.88,9.765e-05,2]
[335129569,1723875744713,196.35,9.775e-05,2]
[335129570,1723875814752,164.22,8.219e-05,2]
[335129571,1723875892402,550.38448225,9.962e-05,2]
[335129575,1723875976344,250.0,9.8e-05,2]
[335129587,1723876044487,400.0,9.9e-05,3]
[335129591,1723876136588,495.9,9.661e-05,2]
[335129595,1723876152511,200.0,9.663e-05,2]
[335129612,1723876231874,-155.0,9.988e-05,2]
[335129613,1723876231883,-796.34089058,0.0001,3]
[335129614,1723876231910,-3.65910942,0.0001,3]
[335129615,1723876231920,-918.87231146,0.0001,2]
[335129616,1723876231931,-419.17924755,0.0001,2]
[335129617,1723876231944,-974.14535562,0.0001,2]
[335129618,1723876231956,-3108.60605083,0.0001,2]
[335129619,1723876231965,-649.92257342,0.00010097,2]
[335129620,1723876231976,-1200.0,0.000101,3]
[335129621,1723876231985,-35.2424911,0.000102,3]
[335129622,1723876232003,-315.7795185,0.000102,3]
[335129623,1723876232016,-696.77431602,0.000102,3]
[335129624,1723876232066,-353.05087664,0.000102,3]
[335129626,1723876232078,-199.15279774,0.000102,3]
[335129628,1723876232087,-103.37304726,0.00010298,2]
[335129659,1723876237902,-196.62695274,0.00010298,2]
[335129660,1723876237914,-2100.0,0.000103,3]
[335129661,1723876237924,-10242.91137879,0.000104,5]
[335129662,1723876237935,-492.40723222,0.000104,5]
[335129666,1723876240100,-765.68138899,0.000104,5]
[335129667,1723876240110,-641.30813083,0.000104,2]
[335129668,1723876240268,-194.50186917,0.000104,2]
[335129669,1723876240278,-158.01,0.000104,2]
[335129670,1723876240287,-400.0,0.000104,3]
[335129671,1723876240296,-164.22,0.00010463,2]
[335129672,1723876240305,-207.46207851,0.00010471,2]
[335129673,1723876240315,-845.51,0.000105,2]
[335129674,1723876240324,-421.26,0.000105,2]
[335129675,1723876240333,-798.57835283,0.000105,2]
[335129686,1723876244276,-37.23164717,0.000105,2]
[335129687,1723876244286,-421.26,0.000105,2]
[335129689,1723876244297,-400.0,0.000105,3]
[335129690,1723876244307,-332.95579232,0.00010556,2]
[335129695,1723876288592,-0.76938577,0.00010556,2]
[335129696,1723876288990,-272.6122,0.00010556,2]
[335129697,1723876290180,500.0,9.881e-05,2]
[335129698,1723876290233,285.06,9.881e-05,2]
[335129699,1723876294887,267.22,9.776e-05,2]
[335129701,1723876350026,163.16,8.219e-05,2]
[335129710,1723876492940,250.0,9.734e-05,2]
[335129711,1723876604205,200.0,9.733e-05,2]
[335129712,1723876649002,5677.8,9.69e-05,2]